[Event "Titled Tuesday Blitz March 28 Early 2023"]
[White "Toktomushev, Teimur"]
[Black "Kiseleva, Arina"]
[WhiteFideId "14176726"]
[BlackFideId "4164989"]
[WhiteElo "2116"]
[BlackElo "1756"]
[Result "1-0"]
[Round "06"]
[TimeControl "180+2"]
[Date "2023.03.28"]
[WhiteClock "0:00:59"]
[BlackClock "0:00:45"]

1. d4 {[%clk 0:03:00]}  Nf6 {[%clk 0:02:59]} 2. c4 {[%clk 0:03:00]}  e6 {[%clk 0:02:59]} 3. Nf3 {[%clk 0:03:00]}  Bb4+ {[%clk 0:02:59]} 4. Bd2 {[%clk 0:03:00]}  Bxd2+ {[%clk 0:02:58]} 5. Qxd2 {[%clk 0:03:01]}  O-O {[%clk 0:02:57]} 6. g3 {[%clk 0:03:01]}  d5 {[%clk 0:02:56]} 7. Bg2 {[%clk 0:03:00]}  dxc4 {[%clk 0:02:53]} 8. O-O {[%clk 0:03:00]}  a6 {[%clk 0:02:48]} 9. Ne5 {[%clk 0:02:53]}  c5 {[%clk 0:02:38]} 10. dxc5 {[%clk 0:02:49]}  Qc7 {[%clk 0:02:38]} 11. Nxc4 {[%clk 0:02:37]}  Qxc5 {[%clk 0:02:37]} 12. Rc1 {[%clk 0:02:28]}  Qe7 {[%clk 0:02:28]} 13. Nb6 {[%clk 0:02:24]}  Rd8 {[%clk 0:01:58]} 14. Rxc8 {[%clk 0:02:06]}  Rxc8 {[%clk 0:01:53]} 15. Nxc8 {[%clk 0:02:07]}  Qc7 {[%clk 0:01:46]} 16. Nd6 {[%clk 0:01:57]}  Nc6 {[%clk 0:01:42]} 17. Nc3 {[%clk 0:01:11]}  Rd8 {[%clk 0:01:33]} 18. Rd1 {[%clk 0:01:11]}  Ne5 {[%clk 0:01:06]} 19. Ndb5 {[%clk 0:00:59]}  Rxd2 {[%clk 0:00:55]} 20. Nxc7 {[%clk 0:00:58]}  Rxd1+ {[%clk 0:00:45]} 21. Nxd1 {[%clk 0:00:59]} 1-0


[Site "https://www.chess.com"]

[Event "Titled Tuesday Blitz March 28 Early 2023"]
[White "Manukyan, Sargis A."]
[Black "Onslow, Alfie"]
[WhiteFideId "13303970"]
[BlackFideId "436976"]
[WhiteElo "2187"]
[BlackElo "2114"]
[Result "1/2-1/2"]
[Round "06"]
[TimeControl "180+2"]
[Date "2023.03.28"]
[WhiteClock "0:01:06"]
[BlackClock "0:00:02"]

1. d4 {[%clk 0:03:00]}  d5 {[%clk 0:02:55]} 2. c4 {[%clk 0:03:01]}  e6 {[%clk 0:02:54]} 3. Nc3 {[%clk 0:03:02]}  c6 {[%clk 0:02:52]} 4. e3 {[%clk 0:03:01]}  f5 {[%clk 0:02:51]} 5. Nf3 {[%clk 0:03:02]}  Nf6 {[%clk 0:02:50]} 6. Bd3 {[%clk 0:03:03]}  Bd6 {[%clk 0:02:48]} 7. O-O {[%clk 0:03:03]}  O-O {[%clk 0:02:48]} 8. b3 {[%clk 0:03:02]}  Nbd7 {[%clk 0:02:48]} 9. Bb2 {[%clk 0:03:02]}  Ne4 {[%clk 0:02:45]} 10. Ne2 {[%clk 0:03:00]}  Qe7 {[%clk 0:02:42]} 11. Ne5 {[%clk 0:03:00]}  Nxe5 {[%clk 0:02:26]} 12. dxe5 {[%clk 0:03:01]}  Ba3 {[%clk 0:02:27]} 13. Bxa3 {[%clk 0:02:58]}  Qxa3 {[%clk 0:02:28]} 14. Bxe4 {[%clk 0:02:59]}  fxe4 {[%clk 0:02:27]} 15. Qc1 {[%clk 0:02:51]}  Qe7 {[%clk 0:02:24]} 16. c5 {[%clk 0:02:44]}  Qg5 {[%clk 0:02:15]} 17. Qc3 {[%clk 0:02:42]}  Rf5 {[%clk 0:02:11]} 18. Nd4 {[%clk 0:02:36]}  Rxe5 {[%clk 0:01:58]} 19. f4 {[%clk 0:02:36]}  exf3 {[%clk 0:01:58]} 20. Nxf3 {[%clk 0:02:36]}  Qxe3+ {[%clk 0:01:59]} 21. Qxe3 {[%clk 0:02:29]}  Rxe3 {[%clk 0:02:00]} 22. Rae1 {[%clk 0:02:15]}  Rxe1 {[%clk 0:01:54]} 23. Rxe1 {[%clk 0:02:15]}  Bd7 {[%clk 0:01:53]} 24. Ne5 {[%clk 0:02:16]}  Be8 {[%clk 0:01:42]} 25. Kf2 {[%clk 0:02:15]}  Bg6 {[%clk 0:01:40]} 26. Ke2 {[%clk 0:02:14]}  Be4 {[%clk 0:01:38]} 27. g4 {[%clk 0:02:10]}  Rf8 {[%clk 0:01:37]} 28. h3 {[%clk 0:02:10]}  h5 {[%clk 0:01:24]} 29. b4 {[%clk 0:02:04]}  hxg4 {[%clk 0:01:20]} 30. hxg4 {[%clk 0:02:05]}  g6 {[%clk 0:01:20]} 31. Rc1 {[%clk 0:02:05]}  a6 {[%clk 0:01:19]} 32. a4 {[%clk 0:02:04]}  Kg7 {[%clk 0:01:17]} 33. Rc3 {[%clk 0:02:03]}  Rh8 {[%clk 0:01:15]} 34. b5 {[%clk 0:02:02]}  axb5 {[%clk 0:01:14]} 35. axb5 {[%clk 0:02:03]}  Rh2+ {[%clk 0:01:12]} 36. Ke1 {[%clk 0:02:01]}  cxb5 {[%clk 0:01:11]} 37. Rb3 {[%clk 0:02:01]}  Kf6 {[%clk 0:01:05]} 38. Nd7+ {[%clk 0:01:59]}  Kg5 {[%clk 0:01:04]} 39. Rxb5 {[%clk 0:01:57]}  Kf4 {[%clk 0:00:47]} 40. Rxb7 {[%clk 0:01:57]}  Ke3 {[%clk 0:00:48]} 41. Rb3+ {[%clk 0:01:36]}  Bd3 {[%clk 0:00:47]} 42. Rxd3+ {[%clk 0:01:36]}  Kxd3 {[%clk 0:00:48]} 43. Ne5+ {[%clk 0:01:37]}  Ke4 {[%clk 0:00:28]} 44. Nxg6 {[%clk 0:01:34]}  Rc2 {[%clk 0:00:27]} 45. Nf8 {[%clk 0:01:34]}  e5 {[%clk 0:00:22]} 46. Nd7 {[%clk 0:01:30]}  Rg2 {[%clk 0:00:14]} 47. c6 {[%clk 0:01:28]}  Rc2 {[%clk 0:00:14]} 48. Nf6+ {[%clk 0:01:16]}  Kd4 {[%clk 0:00:13]} 49. g5 {[%clk 0:01:15]}  Rxc6 {[%clk 0:00:12]} 50. Ke2 {[%clk 0:01:16]}  Rc2+ {[%clk 0:00:11]} 51. Kf3 {[%clk 0:01:17]}  e4+ {[%clk 0:00:12]} 52. Kf4 {[%clk 0:01:17]}  e3 {[%clk 0:00:11]} 53. Kg3 {[%clk 0:01:12]}  e2 {[%clk 0:00:05]} 54. Kf2 {[%clk 0:01:12]}  Ke5 {[%clk 0:00:04]} 55. Nh7 {[%clk 0:01:03]}  Kf5 {[%clk 0:00:03]} 56. Nf6 {[%clk 0:01:03]}  Kxg5 {[%clk 0:00:03]} 57. Nxd5 {[%clk 0:01:04]}  Kf5 {[%clk 0:00:02]} 58. Ne3+ {[%clk 0:01:04]}  Ke4 {[%clk 0:00:02]} 59. Nxc2 {[%clk 0:01:05]}  e1=Q+ {[%clk 0:00:02]} 60. Nxe1 {[%clk 0:01:06]} 1/2-1/2


[Site "https://www.chess.com"]

[Event "Titled Tuesday Blitz March 28 Early 2023"]
[White "Bogaudinov, Rushan"]
[Black "Zeynalli, Rashad"]
[WhiteFideId "4129288"]
[BlackFideId "13403320"]
[WhiteElo "1949"]
[BlackElo "2125"]
[Result "0-1"]
[Round "06"]
[TimeControl "180+2"]
[Date "2023.03.28"]
[WhiteClock "0:01:16"]
[BlackClock "0:01:45"]

1. d4 {[%clk 0:02:53]}  f5 {[%clk 0:02:57]} 2. g3 {[%clk 0:02:52]}  Nf6 {[%clk 0:02:57]} 3. Bg2 {[%clk 0:02:53]}  g6 {[%clk 0:02:57]} 4. Nc3 {[%clk 0:02:53]}  Bg7 {[%clk 0:02:56]} 5. e4 {[%clk 0:02:52]}  fxe4 {[%clk 0:02:57]} 6. Nxe4 {[%clk 0:02:53]}  Nxe4 {[%clk 0:02:57]} 7. Bxe4 {[%clk 0:02:54]}  d5 {[%clk 0:02:58]} 8. Bg2 {[%clk 0:02:53]}  O-O {[%clk 0:02:58]} 9. f4 {[%clk 0:02:53]}  c5 {[%clk 0:02:56]} 10. dxc5 {[%clk 0:02:52]}  Qa5+ {[%clk 0:02:54]} 11. c3 {[%clk 0:02:50]}  Qxc5 {[%clk 0:02:53]} 12. Qxd5+ {[%clk 0:02:49]}  Qxd5 {[%clk 0:02:51]} 13. Bxd5+ {[%clk 0:02:50]}  e6 {[%clk 0:02:51]} 14. Be4 {[%clk 0:02:49]}  Nd7 {[%clk 0:02:50]} 15. Be3 {[%clk 0:02:47]}  e5 {[%clk 0:02:45]} 16. O-O-O {[%clk 0:02:44]}  exf4 {[%clk 0:02:43]} 17. Bxf4 {[%clk 0:02:44]}  Nf6 {[%clk 0:02:42]} 18. Bf3 {[%clk 0:02:36]}  Ng4 {[%clk 0:02:35]} 19. Nh3 {[%clk 0:02:29]}  h6 {[%clk 0:02:32]} 20. Bd6 {[%clk 0:02:23]}  Rxf3 {[%clk 0:02:30]} 21. Nf4 {[%clk 0:02:18]}  Bf5 {[%clk 0:02:25]} 22. h3 {[%clk 0:02:11]}  Nf2 {[%clk 0:02:23]} 23. Rhf1 {[%clk 0:02:08]}  Rd8 {[%clk 0:02:05]} 24. g4 {[%clk 0:01:52]}  Bd3 {[%clk 0:01:59]} 25. Nxd3 {[%clk 0:01:50]}  Nxd3+ {[%clk 0:01:57]} 26. Kc2 {[%clk 0:01:28]}  Rxf1 {[%clk 0:01:58]} 27. Rxf1 {[%clk 0:01:28]}  Rxd6 {[%clk 0:01:58]} 28. Rd1 {[%clk 0:01:23]}  Nb4+ {[%clk 0:01:57]} 29. cxb4 {[%clk 0:01:23]}  Rxd1 {[%clk 0:01:58]} 30. Kxd1 {[%clk 0:01:24]}  Bxb2 {[%clk 0:01:59]} 31. Kc2 {[%clk 0:01:25]}  Ba3 {[%clk 0:01:59]} 32. Kb3 {[%clk 0:01:24]}  Bc1 {[%clk 0:01:59]} 33. Kc4 {[%clk 0:01:24]}  Kf7 {[%clk 0:02:00]} 34. Kd5 {[%clk 0:01:24]}  Ke7 {[%clk 0:02:00]} 35. b5 {[%clk 0:01:22]}  Bb2 {[%clk 0:01:57]} 36. a4 {[%clk 0:01:22]}  Bc3 {[%clk 0:01:56]} 37. Kc4 {[%clk 0:01:21]}  Ba5 {[%clk 0:01:55]} 38. Kd5 {[%clk 0:01:22]}  Bc7 {[%clk 0:01:53]} 39. h4 {[%clk 0:01:18]}  Kd7 {[%clk 0:01:53]} 40. h5 {[%clk 0:01:18]}  gxh5 {[%clk 0:01:51]} 41. gxh5 {[%clk 0:01:19]}  Ke7 {[%clk 0:01:49]} 42. Kc5 {[%clk 0:01:17]}  Kf6 {[%clk 0:01:49]} 43. Kd5 {[%clk 0:01:17]}  Kg5 {[%clk 0:01:47]} 44. Ke6 {[%clk 0:01:18]}  Kxh5 {[%clk 0:01:47]} 45. Kd7 {[%clk 0:01:18]}  Bb6 {[%clk 0:01:47]} 46. Kc8 {[%clk 0:01:18]}  Kg4 {[%clk 0:01:47]} 47. Kxb7 {[%clk 0:01:19]}  h5 {[%clk 0:01:47]} 48. Ka6 {[%clk 0:01:19]}  h4 {[%clk 0:01:46]} 49. a5 {[%clk 0:01:19]}  Bc5 {[%clk 0:01:46]} 50. Kb7 {[%clk 0:01:15]}  h3 {[%clk 0:01:45]} 51. Kc6 {[%clk 0:01:15]}  Bg1 {[%clk 0:01:45]} 52. b6 {[%clk 0:01:15]}  Bxb6 {[%clk 0:01:45]} 53. a6 {[%clk 0:01:16]}  h2 {[%clk 0:01:45]} 0-1


[Site "https://www.chess.com"]

[Event "Titled Tuesday Blitz March 28 Early 2023"]
[White "Adithya A Chullikkad"]
[Black "Zacurdajev, Dmitry"]
[WhiteFideId "45078734"]
[BlackFideId "4196309"]
[WhiteElo "1984"]
[BlackElo "2179"]
[Result "0-1"]
[Round "06"]
[TimeControl "180+2"]
[Date "2023.03.28"]
[WhiteClock "0:00:01"]
[BlackClock "0:00:28"]

1. d4 {[%clk 0:03:00]}  d5 {[%clk 0:02:59]} 2. Bf4 {[%clk 0:03:00]}  e6 {[%clk 0:02:59]} 3. e3 {[%clk 0:03:01]}  Nf6 {[%clk 0:02:59]} 4. c3 {[%clk 0:03:01]}  Bd6 {[%clk 0:02:59]} 5. Nf3 {[%clk 0:02:59]}  O-O {[%clk 0:02:57]} 6. Bd3 {[%clk 0:02:59]}  b6 {[%clk 0:02:57]} 7. O-O {[%clk 0:02:53]}  Ba6 {[%clk 0:02:57]} 8. Bxa6 {[%clk 0:02:48]}  Nxa6 {[%clk 0:02:58]} 9. Qa4 {[%clk 0:02:47]}  Nb8 {[%clk 0:02:57]} 10. Bxd6 {[%clk 0:02:46]}  Qxd6 {[%clk 0:02:56]} 11. Nbd2 {[%clk 0:02:44]}  c5 {[%clk 0:02:51]} 12. Ne5 {[%clk 0:02:39]}  Nfd7 {[%clk 0:02:51]} 13. Ndf3 {[%clk 0:02:39]}  f6 {[%clk 0:02:51]} 14. Nd3 {[%clk 0:02:37]}  Nc6 {[%clk 0:02:42]} 15. Rad1 {[%clk 0:02:35]}  c4 {[%clk 0:02:37]} 16. Nf4 {[%clk 0:02:30]}  a6 {[%clk 0:02:19]} 17. Qc2 {[%clk 0:02:18]}  f5 {[%clk 0:02:15]} 18. Rd2 {[%clk 0:02:04]}  b5 {[%clk 0:01:59]} 19. Rfd1 {[%clk 0:01:43]}  b4 {[%clk 0:01:56]} 20. Ne5 {[%clk 0:01:18]}  Ndxe5 {[%clk 0:01:50]} 21. dxe5 {[%clk 0:01:19]}  Qxe5 {[%clk 0:01:51]} 22. Nxd5 {[%clk 0:01:10]}  exd5 {[%clk 0:01:45]} 23. Rxd5 {[%clk 0:01:11]}  Qe4 {[%clk 0:01:42]} 24. Qa4 {[%clk 0:01:08]}  Rf6 {[%clk 0:01:14]} 25. R5d4 {[%clk 0:00:59]}  Nxd4 {[%clk 0:01:11]} 26. cxd4 {[%clk 0:00:56]}  Qb7 {[%clk 0:00:58]} 27. d5 {[%clk 0:00:43]}  c3 {[%clk 0:00:52]} 28. d6 {[%clk 0:00:37]}  Rd8 {[%clk 0:00:46]} 29. d7 {[%clk 0:00:19]}  cxb2 {[%clk 0:00:40]} 30. Qb3+ {[%clk 0:00:16]}  Kh8 {[%clk 0:00:40]} 31. Qxb2 {[%clk 0:00:16]}  Rxd7 {[%clk 0:00:39]} 32. Rb1 {[%clk 0:00:16]}  a5 {[%clk 0:00:37]} 33. g3 {[%clk 0:00:15]}  h6 {[%clk 0:00:37]} 34. Qe5 {[%clk 0:00:15]}  Rfd6 {[%clk 0:00:35]} 35. f4 {[%clk 0:00:02]}  Rd1+ {[%clk 0:00:35]} 36. Rxd1 {[%clk 0:00:01]}  Rxd1+ {[%clk 0:00:36]} 37. Kf2 {[%clk 0:00:02]}  Qe4 {[%clk 0:00:30]} 38. Qb8+ {[%clk 0:00:01]}  Kh7 {[%clk 0:00:30]} 39. Qf8 {[%clk 0:00:01]}  Qc2+ {[%clk 0:00:27]} 40. Kf3 {[%clk 0:00:01]}  Rf1# {[%clk 0:00:28]} 0-1


[Site "https://www.chess.com"]

[Event "Titled Tuesday Blitz March 28 Early 2023"]
[White "Lopez, Nelson M, Ii"]
[Black "ritanovikova"]
[WhiteFideId "2027895"]
[WhiteElo "2384"]
[BlackElo "2205"]
[Result "0-1"]
[Round "06"]
[TimeControl "180+2"]
[Date "2023.03.28"]
[WhiteClock "0:00:19"]
[BlackClock "0:00:27"]

1. e4 {[%clk 0:03:00]}  d5 {[%clk 0:03:00]} 2. exd5 {[%clk 0:03:00]}  Qxd5 {[%clk 0:03:00]} 3. Nc3 {[%clk 0:03:01]}  Qd6 {[%clk 0:03:01]} 4. Nf3 {[%clk 0:03:02]}  Nf6 {[%clk 0:03:01]} 5. g3 {[%clk 0:03:02]}  c6 {[%clk 0:03:01]} 6. Bg2 {[%clk 0:03:03]}  Bg4 {[%clk 0:03:01]} 7. d4 {[%clk 0:03:04]}  e6 {[%clk 0:03:01]} 8. Bf4 {[%clk 0:03:03]}  Qb4 {[%clk 0:03:00]} 9. Qd2 {[%clk 0:03:01]}  Nbd7 {[%clk 0:02:59]} 10. O-O-O {[%clk 0:03:00]}  O-O-O {[%clk 0:02:56]} 11. h3 {[%clk 0:03:01]}  Bf5 {[%clk 0:02:53]} 12. a3 {[%clk 0:02:57]}  Qa5 {[%clk 0:02:51]} 13. g4 {[%clk 0:02:53]}  Bg6 {[%clk 0:02:50]} 14. Ne5 {[%clk 0:02:51]}  Nxe5 {[%clk 0:02:49]} 15. Bxe5 {[%clk 0:02:52]}  Nd5 {[%clk 0:02:45]} 16. Nxd5 {[%clk 0:02:49]}  Qxd2+ {[%clk 0:02:45]} 17. Rxd2 {[%clk 0:02:50]}  cxd5 {[%clk 0:02:44]} 18. f4 {[%clk 0:02:40]}  f6 {[%clk 0:02:43]} 19. f5 {[%clk 0:02:36]}  exf5 {[%clk 0:02:42]} 20. gxf5 {[%clk 0:02:36]}  fxe5 {[%clk 0:02:37]} 21. fxg6 {[%clk 0:02:35]}  e4 {[%clk 0:02:37]} 22. gxh7 {[%clk 0:02:29]}  Rxh7 {[%clk 0:02:34]} 23. c4 {[%clk 0:02:28]}  dxc4 {[%clk 0:02:05]} 24. Bxe4 {[%clk 0:02:27]}  Rh4 {[%clk 0:02:01]} 25. Re1 {[%clk 0:02:24]}  Kb8 {[%clk 0:01:58]} 26. Bf5 {[%clk 0:02:17]}  Bd6 {[%clk 0:01:51]} 27. Kc2 {[%clk 0:02:11]}  Rf4 {[%clk 0:01:49]} 28. Bg4 {[%clk 0:02:07]}  Bc7 {[%clk 0:01:48]} 29. d5 {[%clk 0:02:02]}  Ba5 {[%clk 0:01:44]} 30. Red1 {[%clk 0:01:55]}  Bxd2 {[%clk 0:01:44]} 31. Rxd2 {[%clk 0:01:56]}  Rd6 {[%clk 0:01:34]} 32. Kc3 {[%clk 0:01:56]}  b5 {[%clk 0:01:34]} 33. a4 {[%clk 0:01:56]}  a6 {[%clk 0:01:34]} 34. axb5 {[%clk 0:01:55]}  axb5 {[%clk 0:01:35]} 35. Be6 {[%clk 0:01:55]}  Kc7 {[%clk 0:01:30]} 36. Rg2 {[%clk 0:01:55]}  Rf3+ {[%clk 0:01:16]} 37. Kb4 {[%clk 0:01:53]}  Rb3+ {[%clk 0:01:15]} 38. Kc5 {[%clk 0:01:53]}  Rd8 {[%clk 0:00:45]} 39. Rxg7+ {[%clk 0:01:53]}  Kb8 {[%clk 0:00:45]} 40. Kb6 {[%clk 0:01:14]}  Rd6+ {[%clk 0:00:34]} 41. Kc5 {[%clk 0:01:13]}  Rd8 {[%clk 0:00:34]} 42. Bd7 {[%clk 0:00:55]}  c3 {[%clk 0:00:29]} 43. bxc3 {[%clk 0:00:47]}  Rxc3+ {[%clk 0:00:29]} 44. Kb6 {[%clk 0:00:47]}  Rc7 {[%clk 0:00:29]} 45. Kxb5 {[%clk 0:00:22]}  Rcxd7 {[%clk 0:00:29]} 46. Rxd7 {[%clk 0:00:22]}  Rxd7 {[%clk 0:00:30]} 47. Kc6 {[%clk 0:00:22]}  Kc8 {[%clk 0:00:30]} 48. Kc5 {[%clk 0:00:17]}  Rh7 {[%clk 0:00:28]} 49. Kd4 {[%clk 0:00:18]}  Rxh3 {[%clk 0:00:27]} 50. Ke5 {[%clk 0:00:19]}  Kd7 {[%clk 0:00:27]} 0-1


[Site "https://www.chess.com"]

[Event "Titled Tuesday Blitz March 28 Early 2023"]
[White "Akhmetov, Ayan"]
[Black "Li, Eric"]
[WhiteFideId "13703706"]
[BlackFideId "30939941"]
[WhiteElo "2398"]
[BlackElo "2262"]
[Result "1-0"]
[Round "06"]
[TimeControl "180+2"]
[Date "2023.03.28"]
[WhiteClock "0:00:57"]
[BlackClock "0:00:03"]

1. Nf3 {[%clk 0:01:31]}  d5 {[%clk 0:02:25]} 2. g3 {[%clk 0:01:29]}  Nf6 {[%clk 0:02:24]} 3. Bg2 {[%clk 0:01:29]}  c6 {[%clk 0:02:25]} 4. c4 {[%clk 0:01:29]}  Bf5 {[%clk 0:02:21]} 5. O-O {[%clk 0:01:28]}  e6 {[%clk 0:02:17]} 6. cxd5 {[%clk 0:01:29]}  exd5 {[%clk 0:02:16]} 7. d3 {[%clk 0:01:29]}  Nbd7 {[%clk 0:02:16]} 8. Qb3 {[%clk 0:01:29]}  Qb6 {[%clk 0:02:09]} 9. Qc2 {[%clk 0:01:29]}  Be7 {[%clk 0:01:49]} 10. Nc3 {[%clk 0:01:29]}  O-O {[%clk 0:01:24]} 11. e4 {[%clk 0:01:29]}  dxe4 {[%clk 0:01:09]} 12. dxe4 {[%clk 0:01:30]}  Bg6 {[%clk 0:01:10]} 13. Be3 {[%clk 0:01:28]}  Bc5 {[%clk 0:00:35]} 14. Na4 {[%clk 0:01:27]}  Bxe3 {[%clk 0:00:31]} 15. Nxb6 {[%clk 0:01:26]}  Bxb6 {[%clk 0:00:32]} 16. Nh4 {[%clk 0:01:27]}  Rfe8 {[%clk 0:00:15]} 17. Nxg6 {[%clk 0:01:27]}  hxg6 {[%clk 0:00:16]} 18. Rad1 {[%clk 0:01:24]}  Nc5 {[%clk 0:00:15]} 19. Rfe1 {[%clk 0:01:22]}  Ne6 {[%clk 0:00:13]} 20. h3 {[%clk 0:01:16]}  Rad8 {[%clk 0:00:12]} 21. e5 {[%clk 0:01:14]}  Nd7 {[%clk 0:00:11]} 22. Kh2 {[%clk 0:01:10]}  Ndc5 {[%clk 0:00:09]} 23. b4 {[%clk 0:01:03]}  Na6 {[%clk 0:00:06]} 24. a3 {[%clk 0:01:00]}  Nd4 {[%clk 0:00:04]} 25. Qc4 {[%clk 0:00:57]}  Nc7 {[%clk 0:00:03]} 1-0


[Site "https://www.chess.com"]

[Event "Titled Tuesday Blitz March 28 Early 2023"]
[White "Novikova, Galina"]
[Black "Sanchez, Robert"]
[WhiteFideId "4157095"]
[BlackFideId "2034360"]
[WhiteElo "1953"]
[BlackElo "2136"]
[Result "1-0"]
[Round "06"]
[TimeControl "180+2"]
[Date "2023.03.28"]
[WhiteClock "0:00:57"]
[BlackClock "0:02:22"]

1. e4 {[%clk 0:02:59]}  e6 {[%clk 0:02:59]} 2. Nf3 {[%clk 0:02:59]}  d5 {[%clk 0:02:58]} 3. e5 {[%clk 0:03:00]}  c5 {[%clk 0:02:58]} 4. b4 {[%clk 0:03:01]}  c4 {[%clk 0:02:58]} 5. c3 {[%clk 0:03:00]}  f6 {[%clk 0:02:55]} 6. d4 {[%clk 0:02:53]}  cxd3 {[%clk 0:02:54]} 7. Bxd3 {[%clk 0:02:54]}  Nc6 {[%clk 0:02:54]} 8. Bf4 {[%clk 0:02:50]}  fxe5 {[%clk 0:02:53]} 9. Nxe5 {[%clk 0:02:51]}  Nf6 {[%clk 0:02:53]} 10. O-O {[%clk 0:02:42]}  Bd6 {[%clk 0:02:53]} 11. Qe2 {[%clk 0:02:18]}  O-O {[%clk 0:02:49]} 12. Nxc6 {[%clk 0:02:10]}  bxc6 {[%clk 0:02:48]} 13. Bxd6 {[%clk 0:02:10]}  Qxd6 {[%clk 0:02:48]} 14. Re1 {[%clk 0:02:07]}  e5 {[%clk 0:02:41]} 15. Qxe5 {[%clk 0:01:57]}  Re8 {[%clk 0:02:41]} 16. Qxd6 {[%clk 0:01:50]}  Rxe1+ {[%clk 0:02:41]} 17. Bf1 {[%clk 0:01:51]}  Ba6 {[%clk 0:02:41]} 18. h3 {[%clk 0:01:46]}  Rxf1+ {[%clk 0:02:34]} 19. Kh2 {[%clk 0:01:45]}  Rc8 {[%clk 0:02:27]} 20. a4 {[%clk 0:01:39]}  Ne4 {[%clk 0:02:22]} 21. Qe6+ {[%clk 0:01:35]}  Kf8 {[%clk 0:02:22]} 22. b5 {[%clk 0:01:07]}  Bb7 {[%clk 0:02:22]} 23. Qd7 {[%clk 0:00:57]} 1-0


[Site "https://www.chess.com"]

[Event "Titled Tuesday Blitz March 28 Early 2023"]
[White "Tarnowska, Aleksandra"]
[Black "Orujov2008"]
[WhiteFideId "1180967"]
[WhiteElo "1776"]
[BlackElo "2283"]
[Result "0-1"]
[Round "06"]
[TimeControl "180+2"]
[Date "2023.03.28"]
[WhiteClock "0:00:02"]
[BlackClock "0:00:34"]

1. e4 {[%clk 0:03:00]}  e5 {[%clk 0:02:59]} 2. Nf3 {[%clk 0:03:01]}  Nf6 {[%clk 0:03:00]} 3. Nxe5 {[%clk 0:03:00]}  Nxe4 {[%clk 0:02:59]} 4. d3 {[%clk 0:02:52]}  Nf6 {[%clk 0:02:51]} 5. Nf3 {[%clk 0:02:50]}  d5 {[%clk 0:02:51]} 6. h3 {[%clk 0:02:44]}  Bd6 {[%clk 0:02:50]} 7. Bg5 {[%clk 0:02:37]}  O-O {[%clk 0:02:50]} 8. Be2 {[%clk 0:02:33]}  h6 {[%clk 0:02:50]} 9. Be3 {[%clk 0:02:30]}  c5 {[%clk 0:02:47]} 10. d4 {[%clk 0:02:26]}  c4 {[%clk 0:02:46]} 11. Qd2 {[%clk 0:02:22]}  Nc6 {[%clk 0:02:45]} 12. c3 {[%clk 0:02:10]}  Ne4 {[%clk 0:02:45]} 13. Qc1 {[%clk 0:02:07]}  f5 {[%clk 0:02:45]} 14. Bf4 {[%clk 0:01:52]}  Qc7 {[%clk 0:02:45]} 15. Bxd6 {[%clk 0:01:49]}  Qxd6 {[%clk 0:02:46]} 16. Nbd2 {[%clk 0:01:33]}  Kh8 {[%clk 0:02:43]} 17. Qc2 {[%clk 0:01:27]}  Bd7 {[%clk 0:02:40]} 18. O-O-O {[%clk 0:01:08]}  Nxf2 {[%clk 0:02:36]} 19. g4 {[%clk 0:00:52]}  Nxd1 {[%clk 0:02:27]} 20. Qxd1 {[%clk 0:00:28]}  fxg4 {[%clk 0:02:27]} 21. hxg4 {[%clk 0:00:29]}  Bxg4 {[%clk 0:02:24]} 22. Nh4 {[%clk 0:00:23]}  Bxe2 {[%clk 0:02:19]} 23. Qxe2 {[%clk 0:00:23]}  Rae8 {[%clk 0:02:19]} 24. Qh5 {[%clk 0:00:20]}  Ne7 {[%clk 0:02:00]} 25. Ndf3 {[%clk 0:00:16]}  Qf4+ {[%clk 0:01:50]} 26. Kb1 {[%clk 0:00:13]}  Qe4+ {[%clk 0:01:41]} 27. Ka1 {[%clk 0:00:11]}  Rd8 {[%clk 0:01:16]} 28. a3 {[%clk 0:00:11]}  Rf6 {[%clk 0:01:09]} 29. Re1 {[%clk 0:00:11]}  Qd3 {[%clk 0:00:44]} 30. Rxe7 {[%clk 0:00:07]}  Rdf8 {[%clk 0:00:43]} 31. Qg4 {[%clk 0:00:02]}  R6f7 {[%clk 0:00:33]} 32. Rxf7 {[%clk 0:00:02]}  Rxf7 {[%clk 0:00:34]} 0-1


[Site "https://www.chess.com"]